bitfinex-derivatives/quotes_SOLF0:USTF0_20241229
["timestamp","ask_amount","ask_price","bid_price","bid_amount"]
[1735505440625,10.03239072,191.73,191.66,2.6141]
[1735505441519,2.6138,191.69,191.66,2.6141]
[1735505445627,2.6138,191.69,191.65,8.45809072]
[1735505445831,2.6137,191.69,191.65,11.07219072]
[1735505446433,2.6137,191.69,191.65,2.6141]
[1735505451732,2.6137,191.69,191.66,3.04]
[1735505453336,8.45809072,191.71,191.66,3.04]
[1735505454435,2.6137,191.69,191.66,3.04]
[1735505457337,2.6137,191.68,191.66,3.04]
[1735505466044,8.45809072,191.71,191.66,3.04]
[1735505467050,2.6134,191.7,191.66,3.04]
[1735505467243,8.45809072,191.71,191.66,3.04]
[1735505468150,2.6136,191.69,191.66,3.04]
[1735505468650,8.45809072,191.71,191.66,3.04]
[1735505470145,2.6135,191.69,191.66,5.6538]
[1735505479701,2.6135,191.69,191.67,3.04]
[1735505481869,1.5743,191.73,191.68,8.45809072]
[1735505482071,57.72684093,191.76,191.7,8.45809072]
[1735505482953,2.6126,191.76,191.72,2.6129]
[1735505483257,2.6126,191.76,191.73,3.04]
[1735505485150,8.45809072,191.76,191.68,1.5069]
[1735505485353,8.45809072,191.72,191.64,4.06321081]
[1735505485655,2.6133,191.7,191.66,2.6138]
[1735505487654,2.6136,191.68,191.65,3.04]
[1735505487850,8.45809072,191.7,191.66,3.04]
[1735505488261,2.6137,191.67,191.66,3.04]
[1735505488660,2.6137,191.67,191.65,3.04]
[1735505492957,8.45809072,191.74,191.66,8.45809072]
[1735505493165,66.33491997,191.76,191.7,8.45809072]
[1735505493462,66.33491997,191.76,191.71,3.04]
[1735505493649,2.6126,191.75,191.71,5.6531]
[1735505499667,8.45809072,191.78,191.71,5.6531]
[1735505499860,2.6128,191.74,191.71,5.6531]
[1735505505472,2.6126,191.76,191.72,8.45809072]
[1735505505659,3.1993,191.81,191.72,8.45809072]
[1735505505970,3.1993,191.81,191.74,8.45809072]
[1735505506367,8.45809072,191.82,191.74,8.45809072]
[1735505506562,8.45809072,191.82,191.76,8.45809072]
[1735505506759,8.45809072,191.82,191.77,3.04]
[1735505507079,2.6119,191.81,191.77,5.6522]
[1735505507350,8.45809072,191.78,191.77,3.04]
[1735505507477,11.07029072,191.78,191.77,3.04]
[1735505511869,2.6122,191.78,191.77,3.04]
[1735505512072,2.6122,191.78,191.76,3.04]
[1735505512769,2.6123,191.77,191.76,3.04]
[1735505515772,4.7019,191.86,191.76,11.49809072]
[1735505515965,8.45809072,191.84,191.78,8.45809072]
[1735505516373,2.6115,191.83,191.79,2.6119]
[1735505516567,8.45809072,191.84,191.78,8.45809072]
[1735505517473,8.45809072,191.84,191.78,11.07029072]
[1735505518574,2.6117,191.82,191.78,11.07029072]
[1735505518768,2.6117,191.82,191.79,3.04]
[1735505521074,2.6119,191.8,191.79,3.04]
[1735505521485,8.45809072,191.82,191.75,2.6125]
[1735505521666,8.45809072,191.78,191.72,8.45809072]
[1735505521977,8.45809072,191.78,191.73,3.04]
[1735505522174,2.6126,191.76,191.73,3.04]
[1735505522777,8.45809072,191.83,191.74,8.45809072]
[1735505522978,8.45809072,191.83,191.76,8.45809072]
[1735505523971,2.612,191.8,191.76,11.07059072]
[1735505524377,8.45809072,191.85,191.78,8.45809072]
[1735505524576,2.6115,191.83,191.79,5.652]
[1735505524773,8.45809072,191.85,191.79,5.652]
[1735505526606,1.5344,191.9,191.81,2.6118]
[1735505526772,8.45809072,191.88,191.82,8.45809072]
[1735505527376,2.6112,191.86,191.82,11.06969072]
[1735505527501,8.45809072,191.88,191.8,8.45809072]
[1735505527778,8.45809072,191.88,191.82,8.45809072]
[1735505528493,2.6114,191.85,191.82,8.45809072]
[1735505529076,1.6055,191.91,191.82,8.45809072]
[1735505529384,2.611,191.87,191.83,2.6115]
[1735505529582,2.611,191.87,191.84,3.02]
[1735505530186,2.6113,191.85,191.84,3.02]
[1735505530984,2.6117,191.82,191.78,8.45809072]
[1735505531186,2.6117,191.82,191.79,3.02]
[1735505531998,2.6115,191.83,191.79,3.02]
[1735505532191,2.6115,191.83,191.8,8.45809072]
[1735505532494,8.45809072,191.87,191.81,2.6117]
[1735505532898,8.45809072,191.87,191.8,8.45809072]
[1735505534096,2.6113,191.85,191.8,8.45809072]
[1735505534290,8.45809072,191.87,191.8,8.45809072]
[1735505534597,8.45809072,191.87,191.8,11.06999072]
[1735505534788,2.6115,191.84,191.8,11.06999072]
[1735505539103,2.6116,191.83,191.79,2.612]
[1735505539301,8.45809072,191.87,191.8,3.02]
[1735505539599,8.45809072,191.85,191.8,3.02]
[1735505539803,8.45809072,191.83,191.76,4.06061384]
[1735505540000,8.45809072,191.83,191.77,3.02]
[1735505540896,8.45809072,191.79,191.73,8.45809072]
[1735505541101,8.45809072,191.79,191.74,3.02]
[1735505542303,2.6125,191.76,191.74,3.02]
[1735505543205,8.45809072,191.79,191.74,3.02]
[1735505543797,2.6123,191.78,191.74,3.02]
[1735505544097,8.45809072,191.79,191.74,3.02]
[1735505544900,8.45809072,191.81,191.75,8.45809072]
[1735505545098,8.45809072,191.81,191.74,3.02]
[1735505545404,8.45809072,191.79,191.74,3.02]
[1735505545907,8.45809072,191.77,191.7,11.07139072]
[1735505546108,2.6128,191.74,191.71,3.02]
[1735505547305,2.6126,191.76,191.72,11.07109072]
[1735505548906,8.45809072,191.79,191.72,8.45809072]
[1735505549102,2.6123,191.78,191.74,2.6127]
[1735505549303,8.45809072,191.8,191.74,8.45809072]
[1735505549709,2.6121,191.79,191.75,2.6125]
[1735505549905,2.6121,191.79,191.76,3.02]
[1735505552009,2.6119,191.81,191.76,14.09039072]
[1735505552710,2.6117,191.82,191.78,2.6122]
[1735505553509,8.45809072,191.85,191.76,11.47809072]
[1735505553805,8.45809072,191.83,191.76,11.47809072]
[1735505554006,8.45809072,191.81,191.76,3.02]
[1735505554914,2.6122,191.79,191.76,3.02]
[1735505555108,1.4772,191.88,191.76,3.02]
[1735505555309,8.45809072,191.84,191.77,8.45809072]
[1735505555514,2.6119,191.81,191.77,11.07029072]
[1735505557715,2.6119,191.8,191.77,2.6122]
[1735505557903,8.45809072,191.82,191.76,3.02]
[1735505558510,8.45809072,191.8,191.76,3.02]
[1735505559516,2.6123,191.77,191.76,3.02]
[1735505559918,2.6125,191.76,191.75,3.02]
[1735505560117,8.45809072,191.76,191.7,8.45809072]
[1735505560423,8.45809072,191.76,191.71,3.02]
[1735505561924,2.613,191.73,191.71,3.02]
[1735505564926,1.6162,191.81,191.71,3.02]
[1735505565223,2.6125,191.76,191.72,11.07109072]
[1735505566821,2.6125,191.76,191.73,2.6129]
[1735505570729,2.6127,191.75,191.71,5.6331]
[1735505571727,2.6128,191.74,191.71,5.6331]
[1735505573030,8.45809072,191.77,191.67,1.5696]
[1735505573225,8.45809072,191.77,191.69,11.07139072]
[1735505573641,2.6127,191.75,191.69,11.07139072]
[1735505573827,8.45809072,191.77,191.69,11.07139072]
[1735505574735,2.613,191.73,191.69,11.07139072]
[1735505579033,8.45809072,191.77,191.69,11.07139072]
[1735505579235,2.6131,191.72,191.69,11.07139072]
[1735505582726,2.6131,191.72,191.7,3.02]
[1735505583935,2.6127,191.75,191.72,2.613]
[1735505586536,2.6129,191.74,191.7,5.6333]
[1735505586837,8.45809072,191.77,191.7,3.02]
[1735505587542,2.6131,191.72,191.7,3.02]
[1735505591244,8.45809072,191.77,191.7,3.02]
[1735505591545,2.6129,191.74,191.7,5.6333]
[1735505591842,2.6129,191.74,191.71,8.45809072]
[1735505593042,2.6129,191.74,191.71,11.07119072]
[1735505595143,2.6129,191.73,191.7,5.6333]
[1735505600449,70.48211203,191.81,191.7,3.02]
[1735505600645,2.6123,191.78,191.72,8.45809072]
[1735505600846,70.48211203,191.81,191.72,8.45809072]
[1735505600847,57.87682925,191.81,191.72,8.45809072]
[1735505601154,8.45809072,191.8,191.72,8.45809072]
[1735505602446,2.6126,191.76,191.73,2.6129]
[1735505603550,2.613,191.73,191.7,2.6133]
[1735505603870,8.45809072,191.76,191.68,8.45809072]
[1735505604050,2.613,191.73,191.69,3.02]
[1735505604252,8.45809072,191.74,191.69,3.02]
[1735505604748,2.6132,191.71,191.69,3.02]
[1735505605447,9.97869072,191.79,191.69,11.47809072]
[1735505605642,9.97869072,191.79,191.71,8.45809072]
[1735505605643,57.87682925,191.78,191.71,8.45809072]
[1735505605843,95.27333459,191.79,191.71,8.45809072]
[1735505606354,95.27333459,191.79,191.72,4.98375832]
[1735505606555,8.45809072,191.77,191.72,4.98375832]
[1735505606870,8.45809072,191.77,191.71,8.45809072]
[1735505607957,8.45809072,191.75,191.71,3.02]
[1735505608454,2.6131,191.72,191.71,3.02]
[1735505620359,2.6129,191.74,191.71,3.02]
[1735505620961,2.6129,191.73,191.71,3.02]
[1735505622665,2.6131,191.72,191.71,3.02]
[1735505623071,8.45809072,191.75,191.71,3.02]
[1735505624473,2.613,191.73,191.71,3.02]
[1735505626274,2.6131,191.72,191.71,3.02]
[1735505628274,8.45809072,191.77,191.71,3.02]
[1735505629172,2.6128,191.75,191.72,4.98228287]
[1735505629574,2.6128,191.75,191.71,3.02]
[1735505630078,2.6128,191.74,191.72,4.98238276]
[1735505630475,2.6128,191.74,191.71,3.02]
[1735505630886,2.6128,191.74,191.72,4.97774364]
[1735505631268,2.6128,191.74,191.71,3.02]
[1735505631874,2.6127,191.75,191.71,5.6332]
[1735505632073,8.45809072,191.76,191.72,4.97784101]
[1735505632274,2.6126,191.76,191.72,7.59084101]
[1735505632472,3.2274,191.8,191.73,9.1215434]
[1735505632678,11.68549072,191.8,191.73,4.97784101]
[1735505632876,11.68549072,191.8,191.74,4.97784101]
[1735505633067,11.68549072,191.8,191.71,11.47809072]
[1735505633271,2.6123,191.78,191.74,2.6128]
[1735505633869,3.2274,191.8,191.73,8.45809072]
[1735505634076,14.29749072,191.8,191.75,7.58904747]
[1735505634272,14.29749072,191.8,191.76,3.02]
[1735505636080,8.45809072,191.82,191.77,2.6124]
[1735505636270,8.45809072,191.82,191.78,4.97373357]
[1735505636673,8.45809072,191.82,191.77,2.6124]
[1735505637482,2.6119,191.81,191.77,2.6124]
[1735505639481,8.45809072,191.82,191.76,3.02]
[1735505639687,2.6125,191.77,191.76,3.02]
[1735505639990,8.45809072,191.78,191.69,8.45809072]
[1735505640185,8.45809072,191.76,191.7,7.98890627]
[1735505640587,8.45809072,191.76,191.7,3.02]
[1735505640786,2.613,191.74,191.7,3.02]
[1735505641989,2.613,191.74,191.7,5.6334]
[1735505642193,11.07079072,191.76,191.7,3.02]
[1735505642490,2.6127,191.76,191.71,13.42178412]
[1735505642885,2.6127,191.76,191.72,2.613]
[1735505643085,59.7093801,191.83,191.73,8.45809072]
[1735505643287,61.3098801,191.84,191.75,8.45809072]
[1735505643582,8.45809072,191.82,191.76,5.6325]
[1735505643790,8.45809072,191.82,191.76,3.02]
[1735505643996,61.3098801,191.84,191.77,11.07049072]
[1735505644283,2.6119,191.82,191.77,11.07049072]
[1735505647511,3.1925,191.84,191.79,8.45809072]
[1735505648587,2.6118,191.82,191.79,8.45809072]
[1735505650392,2.6118,191.82,191.78,2.6123]
[1735505650989,2.6118,191.82,191.77,8.45809072]
[1735505650990,3.1925,191.84,191.77,8.45809072]
[1735505651193,2.612,191.81,191.77,11.07049072]
[1735505651787,2.612,191.81,191.78,3.02]
[1735505652195,3.1925,191.84,191.78,5.6323]
[1735505652390,3.1925,191.84,191.79,8.45809072]
[1735505653391,2.6117,191.83,191.79,11.07019072]
[1735505655592,1.6007,191.89,191.81,8.45809072]
[1735505655593,2.6114,191.85,191.81,8.45809072]
[1735505656596,2.6114,191.85,191.82,2.6118]
[1735505656795,2.6114,191.85,191.83,3.02]
[1735505657591,2.6112,191.87,191.83,11.47809072]
[1735505659597,2.6112,191.87,191.83,14.08969072]
[1735505659891,2.6112,191.87,191.85,8.45809072]
[1735505660092,2.6112,191.86,191.85,8.45809072]
[1735505660297,1.6007,191.89,191.83,11.47809072]
[1735505661388,2.6114,191.86,191.83,11.47809072]
[1735505663299,2.6114,191.85,191.83,11.47809072]
[1735505669505,1.5415,191.91,191.83,11.47809072]
[1735505669506,58.07214364,191.92,191.83,11.47809072]
[1735505669805,58.07214364,191.92,191.9,8.45809072]
[1735505670006,58.07214364,191.92,191.91,3.02]
[1735505671007,1.4686,191.94,191.91,3.02]
[1735505671510,2.6105,191.92,191.91,3.02]
[1735505672905,1.4686,191.94,191.84,1.527]
[1735505673113,2.611,191.88,191.85,3.02]
[1735505677114,2.611,191.88,191.87,8.45809072]
[1735505679902,1.4686,191.94,191.87,8.45809072]
[1735505680211,2.6109,191.89,191.85,5.6314]
[1735505681814,2.6109,191.89,191.85,3.02]
[1735505682019,2.6109,191.89,191.88,8.45809072]
[1735505683728,1.4686,191.94,191.88,8.45809072]
[1735505684018,2.6106,191.92,191.9,8.45809072]
[1735505684205,2.6106,191.92,191.91,3.02]
[1735505686919,2.6103,191.94,191.91,3.02]
[1735505687118,2.6103,191.94,191.92,3.02]
[1735505688222,2.6103,191.93,191.92,3.02]
[1735505689325,2.6102,191.94,191.92,3.02]
[1735505689819,4.1772,191.96,191.92,14.08849072]
[1735505691126,2.6101,191.95,191.92,11.47809072]
[1735505691523,2.61,191.96,191.94,8.45809072]
[1735505694440,2.6103,191.94,191.93,8.45809072]
[1735505694629,2.6103,191.94,191.93,11.47809072]
[1735505697935,2.6102,191.94,191.93,3.02]
[1735505699030,2.6104,191.93,191.91,8.45809072]
[1735505699333,2.6104,191.93,191.92,3.02]
[1735505700129,8.45809072,191.96,191.86,2.6113]
[1735505700434,1.4894,191.98,191.89,8.45809072]
[1735505700633,8.45809072,191.96,191.89,8.45809072]
[1735505700929,8.45809072,191.94,191.84,1.527]
[1735505701244,1.4894,191.98,191.85,7.97723266]
[1735505701245,8.45809072,191.92,191.85,7.97723266]
[1735505701429,1.4841,191.91,191.85,3.02]
[1735505701731,2.6114,191.86,191.85,3.02]
[1735505702126,8.45809072,191.9,191.84,8.45809072]
[1735505702328,8.45809072,191.9,191.85,3.02]
[1735505702537,8.45809072,191.9,191.84,8.45809072]
[1735505702736,8.45809072,191.9,191.85,3.02]
[1735505703635,2.6114,191.86,191.85,3.02]
[1735505707240,2.6111,191.88,191.84,8.45809072]
[1735505707451,1.5808,191.93,191.86,8.45809072]
[1735505707641,1.5808,191.93,191.89,8.45809072]
[1735505707837,1.5808,191.93,191.9,3.02]
[1735505708056,2.6107,191.91,191.9,3.02]
[1735505708239,1.5808,191.93,191.9,3.02]
[1735505708639,2.6106,191.91,191.9,3.02]
[1735505712343,2.6104,191.93,191.9,3.02]
[1735505712542,2.6104,191.93,191.91,8.45809072]
[1735505713442,2.6102,191.94,191.91,8.45809072]
[1735505716562,2.6101,191.95,191.93,8.45809072]
[1735505717248,2.6099,191.97,191.93,8.45809072]
[1735505717454,2.6099,191.97,191.95,8.45809072]
[1735505717749,2.6099,191.97,191.96,3.02]
[1735505719450,2.6097,191.98,191.96,3.02]
[1735505720855,2.6096,191.99,191.97,8.45809072]
[1735505721854,1.5201,192.01,191.97,8.45809072]
[1735505722049,2.6098,191.97,191.96,3.02]
[1735505723355,1.5201,192.01,191.96,3.02]
[1735505723554,2.6096,191.99,191.97,8.45809072]
[1735505730359,1.5201,192.01,191.97,8.45809072]
[1735505730360,2.6093,192.01,191.97,8.45809072]
[1735505730554,2.6093,192.01,191.99,8.45809072]
[1735505740360,2.6088,192.05,191.99,11.06749072]
[1735505740565,8.45809072,192.07,192.01,8.45809072]
[1735505740767,3.117,192.08,192.02,3.02]
[1735505740967,2.6089,192.04,192.02,3.02]
[1735505744867,2.609,192.03,192.02,3.02]
[1735505746967,2.6089,192.04,192.02,3.02]
[1735505748166,3.117,192.08,192.03,8.45809072]
[1735505748767,2.6083,192.08,192.05,8.45809072]
[1735505750871,58.03290501,192.11,192.05,8.45809072]
[1735505751180,2.6084,192.07,192.05,8.45809072]
[1735505753173,2.6083,192.08,192.05,8.45809072]
[1735505753883,8.45809072,192.12,192.05,8.45809072]
[1735505754183,2.6085,192.07,192.05,8.45809072]
[1735505754374,70.59753265,192.13,192.05,8.45809072]
[1735505754574,70.59753265,192.13,192.07,8.45809072]
[1735505754770,70.59753265,192.13,192.07,11.45809072]
[1735505755481,2.6083,192.08,192.07,11.45809072]
[1735505757782,12.56462764,192.13,192.07,11.45809072]
[1735505757972,61.08220501,192.14,192.07,3.0]
[1735505758178,61.08220501,192.14,192.09,8.45809072]
[1735505758389,2.6081,192.1,192.09,8.45809072]
[1735505761385,66.49099573,192.17,192.09,8.45809072]
[1735505761586,66.49099573,192.17,192.11,8.45809072]
[1735505761784,66.49099573,192.17,192.12,3.0]
[1735505761976,2.6076,192.13,192.12,3.0]
[1735505764176,2.6081,192.1,192.08,1.5854]
[1735505764376,2.6081,192.1,192.09,11.45809072]
[1735505768287,8.45809072,192.18,192.09,11.45809072]
[1735505768617,112.70326093,192.19,192.13,8.45809072]
[1735505768783,112.70326093,192.19,192.14,3.0]
[1735505769189,2.6074,192.15,192.14,3.0]
[1735505769989,2.6073,192.16,192.14,3.0]
[1735505770187,2.6073,192.16,192.15,8.45809072]
[1735505770884,2.6071,192.18,192.15,8.45809072]
[1735505771190,2.6071,192.18,192.17,8.45809072]
[1735505771985,2.6069,192.19,192.17,8.45809072]
[1735505772586,2.6067,192.2,192.17,8.45809072]
[1735505773986,8.45809072,192.2,192.07,3.1818]
[1735505774292,8.45809072,192.2,192.13,8.45809072]
[1735505774490,1.5791,192.19,192.14,3.0]
[1735505775591,2.6074,192.15,192.14,3.0]
[1735505777093,2.6074,192.15,192.13,8.45809072]
[1735505777492,2.6074,192.15,192.14,3.0]
[1735505778286,2.6072,192.17,192.14,3.0]
[1735505778492,8.45809072,192.24,192.16,8.45809072]
[1735505778896,2.607,192.19,192.16,8.45809072]
[1735505779493,8.45809072,192.24,192.16,8.45809072]
[1735505779793,2.607,192.18,192.16,8.45809072]
[1735505784996,2.6069,192.2,192.16,8.45809072]
[1735505785796,2.6069,192.19,192.16,8.45809072]
[1735505787496,8.45809072,192.23,192.14,3.0]
[1735505787700,8.45809072,192.23,192.15,8.45809072]
[1735505787901,1.5528,192.22,192.15,8.45809072]
[1735505788401,2.6068,192.2,192.15,8.45809072]
[1735505788601,1.5528,192.22,192.15,8.45809072]
[1735505789507,2.6071,192.18,192.15,8.45809072]
[1735505791810,1.5528,192.22,192.15,8.45809072]
[1735505792010,2.6072,192.17,192.15,8.45809072]
[1735505793208,1.5528,192.22,192.15,8.45809072]
[1735505793511,2.607,192.19,192.17,8.45809072]
[1735505796213,2.6069,192.2,192.17,11.06519072]
[1735505797112,2.6069,192.19,192.17,8.45809072]
[1735505804221,70.59506259,192.25,192.17,8.45809072]
[1735505804416,2.6067,192.21,192.18,2.607]
[1735505804617,2.6067,192.21,192.19,3.0]
[1735505804819,2.6067,192.2,192.19,3.0]
[1735505808019,58.03290501,192.24,192.19,3.0]
[1735505808220,2.6066,192.21,192.19,3.0]
[1735505809920,2.6066,192.21,192.19,11.45809072]
[1735505812221,2.6064,192.23,192.19,14.06489072]
[1735505812419,58.03290501,192.24,192.19,14.06489072]
[1735505812722,58.03290501,192.24,192.21,8.45809072]
[1735505812918,60.63920501,192.24,192.21,11.06459072]
[1735505814116,58.03290501,192.26,192.21,8.45809072]
[1735505814320,60.63900501,192.26,192.23,2.6063]
[1735505815125,2.6061,192.26,192.23,2.6063]
[1735505816623,2.6061,192.26,192.22,2.6064]
[1735505816822,2.6061,192.26,192.23,3.0]
[1735505818627,2.6061,192.26,192.23,11.45809072]
[1735505818830,1.5105,192.27,192.23,14.06439072]
[1735505818831,4.1163,192.27,192.23,14.06439072]
[1735505819017,1.5105,192.27,192.23,11.45809072]
[1735505820424,2.6059,192.26,192.23,11.45809072]
[1735505820726,111.61901854,192.29,192.23,11.45809072]
[1735505820927,58.03290501,192.27,192.23,11.45809072]
[1735505821131,58.03290501,192.27,192.23,14.06429072]
[1735505821523,58.03290501,192.27,192.25,8.45809072]
[1735505822727,73.20759914,192.28,192.25,8.45809072]
[1735505823122,70.60179914,192.28,192.25,8.45809072]
[1735505823727,70.60179914,192.28,192.27,8.45809072]
[1735505824833,58.03290501,192.29,192.27,8.45809072]
[1735505825126,58.03290501,192.29,192.28,3.0]
[1735505825928,58.03290501,192.29,192.28,11.45809072]
[1735505826124,58.03290501,192.31,192.28,11.45809072]
[1735505827430,2.6053,192.31,192.28,11.45809072]
[1735505828831,8.45809072,192.29,192.07,58.03736991]
[1735505829031,35.29339654,192.3,192.12,8.45809072]
[1735505829222,35.29339654,192.3,192.16,8.45809072]
[1735505829427,8.45809072,192.23,192.16,8.45809072]
[1735505830332,2.6067,192.2,192.16,8.45809072]
[1735505830529,58.03290501,192.24,192.16,8.45809072]
[1735505830729,8.45809072,192.23,192.16,8.45809072]
[1735505831528,8.45809072,192.21,192.15,3.0]
[1735505832627,58.03290501,192.24,192.18,8.45809072]
[1735505833435,2.6064,192.23,192.18,8.45809072]
[1735505833630,66.49099573,192.25,192.18,8.45809072]
[1735505834539,8.45809072,192.23,192.15,11.45809072]
[1735505834935,2.607,192.19,192.15,11.45809072]
[1735505835536,2.6068,192.2,192.17,8.45809072]
[1735505836040,2.6069,192.19,192.17,8.45809072]
[1735505840945,2.6068,192.2,192.17,8.45809072]
[1735505841145,58.03290501,192.25,192.19,8.45809072]
[1735505841340,70.60179914,192.26,192.19,8.45809072]
[1735505841644,2.6063,192.24,192.21,8.45809072]
[1735505841839,70.60179914,192.26,192.21,8.45809072]
[1735505842044,2.6064,192.23,192.21,8.45809072]
[1735505845643,2.6064,192.23,192.2,3.0]
[1735505845850,2.6066,192.21,192.2,3.0]
[1735505846344,1.5136,192.27,192.2,3.0]
[1735505846541,2.6065,192.22,192.2,3.0]
[1735505847249,2.6066,192.21,192.2,3.0]
[1735505849746,2.6066,192.21,192.19,11.45809072]
[1735505850148,2.6066,192.21,192.19,3.0]
[1735505850342,2.6066,192.21,192.19,11.45809072]
[1735505851947,2.6064,192.23,192.19,14.06499072]
[1735505852146,2.6064,192.23,192.21,8.45809072]
[1735505852539,58.03290501,192.29,192.23,2.6063]
[1735505852740,58.03290501,192.29,192.25,8.45809072]
[1735505853148,2.6057,192.28,192.25,8.45809072]
[1735505853650,2.6055,192.29,192.25,8.45809072]
[1735505853853,8.45809072,192.32,192.25,8.45809072]
[1735505854856,2.6059,192.26,192.24,3.0]
[1735505855052,8.45809072,192.3,192.24,3.0]
[1735505855274,8.45809072,192.3,192.2,4.7184]
[1735505855453,8.45809072,192.28,192.23,3.0]
[1735505856353,8.45809072,192.3,192.23,11.45809072]
[1735505856556,2.606,192.26,192.23,11.45809072]
[1735505859153,2.6054,192.3,192.26,2.6059]
[1735505863862,50.71620501,192.35,192.33,6.0]
[1735505864156,105.85965897,192.37,192.34,11.45809072]
[1735505864360,87.04935751,192.37,192.36,8.45809072]
[1735505865270,43.36337649,192.37,192.36,11.06269072]
[1735505866175,8.45809072,192.43,192.25,58.47069446]
[1735505866375,2.604,192.41,192.36,8.45809072]
[1735505866575,2.604,192.41,192.37,3.0]
[1735505867474,1.5273,192.42,192.38,8.45809072]
[1735505867680,1.5273,192.42,192.39,3.0]
[1735505867975,4.1311,192.42,192.39,3.0]
[1735505870175,1.5273,192.42,192.39,5.6041]
[1735505870481,1.5273,192.42,192.4,8.45809072]
[1735505870975,2.6032,192.46,192.4,11.06199072]
[1735505871280,3.1277,192.49,192.43,8.45809072]
[1735505871476,11.06109072,192.48,192.44,3.0]
[1735505871776,8.45809072,192.48,192.45,3.0]
[1735505872581,2.6031,192.47,192.45,3.0]
[1735505873176,8.45809072,192.48,192.32,3.76985401]
[1735505873482,8.45809072,192.48,192.4,8.45809072]
[1735505873679,8.45809072,192.48,192.42,8.45809072]
[1735505873891,3.1277,192.49,192.43,3.0]
[1735505874471,2.6031,192.47,192.43,3.0]
[1735505875279,8.45809072,192.48,192.43,3.0]
[1735505878478,2.6032,192.47,192.43,3.0]
[1735505878686,8.45809072,192.44,192.34,8.45809072]
[1735505878877,8.45809072,192.42,192.34,8.45809072]
[1735505879377,11.45519072,192.42,192.34,8.45809072]
[1735505880476,2.6042,192.39,192.34,11.06289072]
[1735505881483,2.6044,192.38,192.33,5.605]
[1735505881683,2.6044,192.38,192.34,8.45809072]
[1735505882190,2.6044,192.38,192.34,11.45809072]
[1735505882882,2.6044,192.38,192.34,14.06289072]
[1735505883085,11.45519072,192.42,192.34,14.06289072]
[1735505883086,2.6046,192.37,192.34,3.0]
[1735505883386,11.45519072,192.42,192.34,11.45809072]
[1735505883586,2.9971,192.42,192.34,11.45809072]
[1735505883787,2.6044,192.38,192.34,11.45809072]
[1735505885385,2.6044,192.38,192.36,8.45809072]
[1735505888388,11.45519072,192.42,192.36,8.45809072]
[1735505888691,2.6042,192.4,192.36,11.06259072]
[1735505891989,2.9971,192.42,192.38,8.45809072]
[1735505892395,2.9971,192.42,192.34,3.0]
[1735505892591,5.6009,192.42,192.38,11.06229072]
[1735505892995,2.9971,192.42,192.38,8.45809072]
[1735505893995,2.9971,192.42,192.39,2.6041]
[1735505896100,2.6036,192.43,192.39,2.6041]
[1735505896897,2.6036,192.43,192.39,5.6041]
[1735505898500,2.6035,192.44,192.4,11.06209072]
[1735505898699,4.6706,192.49,192.4,8.45809072]
[1735505898897,8.45809072,192.48,192.4,8.45809072]
[1735505899699,2.6033,192.46,192.42,2.6037]
[1735505900593,2.6036,192.44,192.4,2.6039]
[1735505900799,2.6036,192.44,192.4,11.06199072]
[1735505901703,4.6706,192.49,192.42,8.45809072]
[1735505901903,13.12869072,192.49,192.42,8.45809072]
[1735505902504,8.45809072,192.47,192.42,8.45809072]
[1735505902701,4.6706,192.49,192.46,8.45809072]
[1735505902702,3.0833,192.49,192.46,8.45809072]
[1735505902904,4.5403,192.57,192.48,8.45809072]
[1735505903106,8.45809072,192.55,192.48,8.45809072]
[1735505906404,2.6026,192.51,192.48,8.45809072]
[1735505909504,8.45809072,192.54,192.48,8.45809072]
[1735505909707,2.6027,192.5,192.48,8.45809072]
[1735505910713,2.6026,192.51,192.48,8.45809072]
[1735505916313,8.45809072,192.54,192.37,6.75966003]
[1735505916513,8.45809072,192.48,192.42,8.45809072]
[1735505916716,8.45809072,192.5,192.44,8.45809072]
[1735505917013,3.0,192.55,192.44,8.45809072]
[1735505917313,8.45809072,192.52,192.46,8.45809072]